[Event "Titled Tuesday Blitz December 7 2021"]
[White "Adewumi, Tanitoluwa"]
[Black "Seletsky, Grigory"]
[WhiteFideId "30966396"]
[BlackFideId "14112191"]
[WhiteElo "2547"]
[BlackElo "2492"]
[Result "1-0"]
[Round "11"]
[TimeControl "180+1"]
[Date "2021.12.07"]
[WhiteClock "0:01:20"]
[BlackClock "0:00:33"]

1. e4 {[%clk 0:03:00]}  e6 {[%clk 0:02:58]} 2. d4 {[%clk 0:03:00]}  d5 {[%clk 0:02:58]} 3. exd5 {[%clk 0:03:00]}  exd5 {[%clk 0:02:57]} 4. Nf3 {[%clk 0:03:01]}  Nf6 {[%clk 0:02:57]} 5. Bd3 {[%clk 0:03:00]}  Bd6 {[%clk 0:02:56]} 6. h3 {[%clk 0:03:00]}  h6 {[%clk 0:02:54]} 7. O-O {[%clk 0:03:01]}  O-O {[%clk 0:02:54]} 8. c4 {[%clk 0:02:59]}  c6 {[%clk 0:02:53]} 9. Nc3 {[%clk 0:02:58]}  dxc4 {[%clk 0:02:50]} 10. Bxc4 {[%clk 0:02:59]}  Nbd7 {[%clk 0:02:50]} 11. Re1 {[%clk 0:02:58]}  Nb6 {[%clk 0:02:50]} 12. Bd3 {[%clk 0:02:57]}  Be6 {[%clk 0:02:50]} 13. Qe2 {[%clk 0:02:55]}  Re8 {[%clk 0:02:49]} 14. Be3 {[%clk 0:02:54]}  Nbd5 {[%clk 0:02:48]} 15. Qd2 {[%clk 0:02:53]}  Nxc3 {[%clk 0:02:41]} 16. bxc3 {[%clk 0:02:52]}  b5 {[%clk 0:02:41]} 17. Bxh6 {[%clk 0:02:47]}  gxh6 {[%clk 0:02:40]} 18. Qxh6 {[%clk 0:02:48]}  Bf8 {[%clk 0:02:40]} 19. Qh4 {[%clk 0:02:41]}  Bg7 {[%clk 0:02:40]} 20. Re5 {[%clk 0:02:39]}  Bd5 {[%clk 0:02:39]} 21. Rg5 {[%clk 0:02:32]}  Qd6 {[%clk 0:02:07]} 22. Qh6 {[%clk 0:02:27]}  Qf8 {[%clk 0:01:54]} 23. Qxf6 {[%clk 0:02:19]}  Bxf3 {[%clk 0:01:53]} 24. Qxf3 {[%clk 0:02:20]}  Qd6 {[%clk 0:01:33]} 25. Qg4 {[%clk 0:02:12]}  Qf6 {[%clk 0:01:28]} 26. Rf5 {[%clk 0:02:07]}  Qh6 {[%clk 0:01:24]} 27. Qf3 {[%clk 0:02:03]}  Re7 {[%clk 0:01:08]} 28. Rh5 {[%clk 0:01:58]}  Qd2 {[%clk 0:01:06]} 29. Rd1 {[%clk 0:01:37]}  Re1+ {[%clk 0:00:55]} 30. Rxe1 {[%clk 0:01:36]}  Qxe1+ {[%clk 0:00:56]} 31. Kh2 {[%clk 0:01:36]}  Kf8 {[%clk 0:00:53]} 32. Qxc6 {[%clk 0:01:33]}  Re8 {[%clk 0:00:53]} 33. Qd6+ {[%clk 0:01:32]}  Kg8 {[%clk 0:00:52]} 34. Bh7+ {[%clk 0:01:31]}  Kh8 {[%clk 0:00:50]} 35. Qf4 {[%clk 0:01:22]}  Qe2 {[%clk 0:00:39]} 36. Bg6+ {[%clk 0:01:20]}  Qxh5 {[%clk 0:00:35]} 37. Bxh5 {[%clk 0:01:21]}  Re7 {[%clk 0:00:33]} 38. Bxf7 {[%clk 0:01:20]} 1-0


[Site "https://www.chess.com"]

[Event "Titled Tuesday Blitz December 7 2021"]
[White "Aradhya, Garg"]
[Black "Savchenko, Boris"]
[WhiteFideId "25006746"]
[BlackFideId "4147332"]
[WhiteElo "2176"]
[BlackElo "2499"]
[Result "1-0"]
[Round "11"]
[TimeControl "180+1"]
[Date "2021.12.07"]
[WhiteClock "0:01:34"]
[BlackClock "0:00:24"]

1. d4 {[%clk 0:03:00]}  Nf6 {[%clk 0:00:37]} 2. c4 {[%clk 0:03:00]}  e6 {[%clk 0:00:37]} 3. Nf3 {[%clk 0:03:00]}  b6 {[%clk 0:00:38]} 4. e3 {[%clk 0:02:59]}  Bb4+ {[%clk 0:00:38]} 5. Bd2 {[%clk 0:02:59]}  a5 {[%clk 0:00:38]} 6. Bd3 {[%clk 0:02:59]}  O-O {[%clk 0:00:38]} 7. O-O {[%clk 0:02:57]}  Bb7 {[%clk 0:00:38]} 8. Nc3 {[%clk 0:02:57]}  d6 {[%clk 0:00:38]} 9. Qe2 {[%clk 0:02:54]}  c5 {[%clk 0:00:38]} 10. Rfd1 {[%clk 0:02:45]}  Nbd7 {[%clk 0:00:37]} 11. a3 {[%clk 0:02:30]}  Bxc3 {[%clk 0:00:37]} 12. Bxc3 {[%clk 0:02:31]}  Qe7 {[%clk 0:00:38]} 13. Nd2 {[%clk 0:02:28]}  cxd4 {[%clk 0:00:38]} 14. exd4 {[%clk 0:02:28]}  d5 {[%clk 0:00:38]} 15. b3 {[%clk 0:02:22]}  Rfc8 {[%clk 0:00:34]} 16. a4 {[%clk 0:02:21]}  Qd6 {[%clk 0:00:33]} 17. Nf3 {[%clk 0:02:19]}  Nf8 {[%clk 0:00:29]} 18. Ne5 {[%clk 0:02:14]}  Ng6 {[%clk 0:00:29]} 19. Qe3 {[%clk 0:01:51]}  dxc4 {[%clk 0:00:29]} 20. bxc4 {[%clk 0:01:49]}  Nxe5 {[%clk 0:00:29]} 21. dxe5 {[%clk 0:01:49]}  Qc6 {[%clk 0:00:29]} 22. Bf1 {[%clk 0:01:46]}  Nd7 {[%clk 0:00:28]} 23. h4 {[%clk 0:01:37]}  Nc5 {[%clk 0:00:27]} 24. h5 {[%clk 0:01:37]}  Rd8 {[%clk 0:00:27]} 25. h6 {[%clk 0:01:36]}  Nxa4 {[%clk 0:00:25]} 26. Rxd8+ {[%clk 0:01:34]}  Rxd8 {[%clk 0:00:24]} 27. Qg5 {[%clk 0:01:34]} 1-0


[Site "https://www.chess.com"]

[Event "Titled Tuesday Blitz December 7 2021"]
[White "Babazada, Khazar"]
[Black "Nakamura, Hikaru"]
[WhiteFideId "13413554"]
[BlackFideId "2016192"]
[WhiteElo "2302"]
[BlackElo "2884"]
[Result "1-0"]
[Round "11"]
[TimeControl "180+1"]
[Date "2021.12.07"]
[WhiteClock "0:00:17"]
[BlackClock "0:00:04"]

1. Nf3 {[%clk 0:03:00]}  d5 {[%clk 0:02:59]} 2. g3 {[%clk 0:03:01]}  g6 {[%clk 0:02:59]} 3. Bg2 {[%clk 0:03:01]}  Bg7 {[%clk 0:03:00]} 4. d4 {[%clk 0:03:02]}  Nd7 {[%clk 0:03:00]} 5. O-O {[%clk 0:03:02]}  Nb6 {[%clk 0:03:01]} 6. b3 {[%clk 0:03:00]}  Nf6 {[%clk 0:02:58]} 7. Bb2 {[%clk 0:03:00]}  O-O {[%clk 0:02:58]} 8. Nbd2 {[%clk 0:03:00]}  a5 {[%clk 0:02:53]} 9. a4 {[%clk 0:03:00]}  Ne4 {[%clk 0:02:52]} 10. Ne5 {[%clk 0:02:59]}  Nd6 {[%clk 0:02:46]} 11. e4 {[%clk 0:02:57]}  c6 {[%clk 0:02:43]} 12. Re1 {[%clk 0:02:56]}  Re8 {[%clk 0:02:33]} 13. Nd3 {[%clk 0:02:55]}  f6 {[%clk 0:02:24]} 14. Nc5 {[%clk 0:02:49]}  Nf7 {[%clk 0:02:19]} 15. e5 {[%clk 0:02:47]}  fxe5 {[%clk 0:02:12]} 16. dxe5 {[%clk 0:02:48]}  Ng5 {[%clk 0:02:13]} 17. Nf3 {[%clk 0:02:43]}  Bg4 {[%clk 0:02:11]} 18. h4 {[%clk 0:02:26]}  Ne6 {[%clk 0:01:40]} 19. Nxe6 {[%clk 0:02:25]}  Bxe6 {[%clk 0:01:41]} 20. Ng5 {[%clk 0:02:25]}  Qd7 {[%clk 0:01:42]} 21. Nxe6 {[%clk 0:02:24]}  Qxe6 {[%clk 0:01:42]} 22. Kh2 {[%clk 0:02:25]}  Qf7 {[%clk 0:01:40]} 23. Qd4 {[%clk 0:02:14]}  Nc8 {[%clk 0:01:38]} 24. c4 {[%clk 0:02:06]}  e6 {[%clk 0:01:32]} 25. cxd5 {[%clk 0:02:06]}  cxd5 {[%clk 0:01:33]} 26. Rac1 {[%clk 0:02:06]}  Na7 {[%clk 0:01:33]} 27. f4 {[%clk 0:02:03]}  Nc6 {[%clk 0:01:33]} 28. Qb6 {[%clk 0:02:03]}  Ra6 {[%clk 0:01:28]} 29. Qe3 {[%clk 0:02:01]}  Nb4 {[%clk 0:01:25]} 30. Bf1 {[%clk 0:02:00]}  Rc6 {[%clk 0:01:24]} 31. Bb5 {[%clk 0:02:00]}  Nc2 {[%clk 0:01:24]} 32. Qe2 {[%clk 0:01:55]}  Nxe1 {[%clk 0:01:24]} 33. Bxc6 {[%clk 0:01:54]}  bxc6 {[%clk 0:01:23]} 34. Qxe1 {[%clk 0:01:46]}  Qb7 {[%clk 0:01:23]} 35. Qc3 {[%clk 0:01:37]}  Rc8 {[%clk 0:01:03]} 36. Ba3 {[%clk 0:01:37]}  c5 {[%clk 0:01:03]} 37. Qxa5 {[%clk 0:01:16]}  Bf8 {[%clk 0:00:50]} 38. Bxc5 {[%clk 0:00:56]}  Qxb3 {[%clk 0:00:49]} 39. Qa6 {[%clk 0:00:56]}  Qb2+ {[%clk 0:00:29]} 40. Kh3 {[%clk 0:00:55]}  Re8 {[%clk 0:00:27]} 41. Qf1 {[%clk 0:00:49]}  Rc8 {[%clk 0:00:16]} 42. Qa6 {[%clk 0:00:45]}  Qxc1 {[%clk 0:00:08]} 43. Qxc8 {[%clk 0:00:30]}  Qxc5 {[%clk 0:00:03]} 44. Qxe6+ {[%clk 0:00:30]}  Kh8 {[%clk 0:00:04]} 45. Qf7 {[%clk 0:00:22]}  Qe7 {[%clk 0:00:01]} 46. Qxd5 {[%clk 0:00:22]}  Qc5 {[%clk 0:00:02]} 47. Qxc5 {[%clk 0:00:17]}  Bxc5 {[%clk 0:00:02]} 48. g4 {[%clk 0:00:18]}  Kg7 {[%clk 0:00:02]} 49. Kg3 {[%clk 0:00:18]}  Kf7 {[%clk 0:00:03]} 50. Kf3 {[%clk 0:00:19]}  h5 {[%clk 0:00:03]} 51. f5 {[%clk 0:00:17]}  hxg4+ {[%clk 0:00:04]} 52. Kxg4 {[%clk 0:00:17]}  Be7 {[%clk 0:00:04]} 53. h5 {[%clk 0:00:17]}  gxf5+ {[%clk 0:00:04]} 54. Kxf5 {[%clk 0:00:17]} 1-0


[Site "https://www.chess.com"]

[Event "Titled Tuesday Blitz December 7 2021"]
[White "Bach, Ngoc Thuy Duong"]
[Black "Artemenko, Oleg"]
[WhiteFideId "12408956"]
[BlackFideId "14201798"]
[WhiteElo "1896"]
[BlackElo "2287"]
[Result "1/2-1/2"]
[Round "11"]
[TimeControl "180+1"]
[Date "2021.12.07"]
[WhiteClock "0:00:48"]
[BlackClock "0:01:40"]

1. d4 {[%clk 0:02:55]}  Nf6 {[%clk 0:02:59]} 2. c4 {[%clk 0:02:54]}  e6 {[%clk 0:02:59]} 3. Nc3 {[%clk 0:02:55]}  Bb4 {[%clk 0:02:59]} 4. Qc2 {[%clk 0:02:55]}  O-O {[%clk 0:02:59]} 5. a3 {[%clk 0:02:55]}  Bxc3+ {[%clk 0:02:59]} 6. Qxc3 {[%clk 0:02:56]}  Ne4 {[%clk 0:02:59]} 7. Qc2 {[%clk 0:02:56]}  d5 {[%clk 0:03:00]} 8. Nf3 {[%clk 0:02:54]}  c5 {[%clk 0:03:00]} 9. e3 {[%clk 0:02:51]}  Nc6 {[%clk 0:03:00]} 10. cxd5 {[%clk 0:02:44]}  exd5 {[%clk 0:02:58]} 11. dxc5 {[%clk 0:02:42]}  Qa5+ {[%clk 0:02:54]} 12. Bd2 {[%clk 0:02:42]}  Qxc5 {[%clk 0:02:52]} 13. Bd3 {[%clk 0:02:41]}  Qxc2 {[%clk 0:02:43]} 14. Bxc2 {[%clk 0:02:42]}  Nxd2 {[%clk 0:02:44]} 15. Kxd2 {[%clk 0:02:41]}  Bg4 {[%clk 0:02:43]} 16. Nd4 {[%clk 0:02:41]}  Nxd4 {[%clk 0:02:43]} 17. exd4 {[%clk 0:02:41]}  Be6 {[%clk 0:02:43]} 18. Bd3 {[%clk 0:02:41]}  Rfc8 {[%clk 0:02:43]} 19. Rhc1 {[%clk 0:02:40]}  Kf8 {[%clk 0:02:43]} 20. b4 {[%clk 0:02:37]}  Ke7 {[%clk 0:02:42]} 21. Rc5 {[%clk 0:02:33]}  b6 {[%clk 0:02:42]} 22. Rcc1 {[%clk 0:02:33]}  g6 {[%clk 0:02:40]} 23. Ba6 {[%clk 0:02:32]}  Rxc1 {[%clk 0:02:37]} 24. Rxc1 {[%clk 0:02:33]}  Kd6 {[%clk 0:02:37]} 25. g3 {[%clk 0:02:29]}  Bd7 {[%clk 0:02:35]} 26. Rc3 {[%clk 0:02:19]}  f5 {[%clk 0:02:33]} 27. f4 {[%clk 0:02:18]}  Re8 {[%clk 0:02:32]} 28. Rc1 {[%clk 0:02:06]}  Re4 {[%clk 0:02:26]} 29. Bd3 {[%clk 0:02:06]}  Re8 {[%clk 0:02:24]} 30. b5 {[%clk 0:01:59]}  Rc8 {[%clk 0:02:23]} 31. Re1 {[%clk 0:01:58]}  Re8 {[%clk 0:02:18]} 32. Re5 {[%clk 0:01:57]}  Rxe5 {[%clk 0:02:16]} 33. fxe5+ {[%clk 0:01:56]}  Ke6 {[%clk 0:02:14]} 34. Ke3 {[%clk 0:01:56]}  g5 {[%clk 0:02:12]} 35. h4 {[%clk 0:01:43]}  h6 {[%clk 0:02:11]} 36. Kf3 {[%clk 0:01:42]}  Kf7 {[%clk 0:02:09]} 37. Ke3 {[%clk 0:01:39]}  Be6 {[%clk 0:02:06]} 38. Be2 {[%clk 0:01:36]}  Kg6 {[%clk 0:02:05]} 39. a4 {[%clk 0:01:30]}  Bd7 {[%clk 0:02:02]} 40. Bd1 {[%clk 0:01:26]}  Be6 {[%clk 0:02:01]} 41. Be2 {[%clk 0:01:19]}  h5 {[%clk 0:01:58]} 42. Bd1 {[%clk 0:01:17]}  Kh6 {[%clk 0:01:52]} 43. Bc2 {[%clk 0:01:11]}  Kg6 {[%clk 0:01:51]} 44. Kf3 {[%clk 0:01:10]}  Kh6 {[%clk 0:01:50]} 45. Bd3 {[%clk 0:01:06]}  Kg6 {[%clk 0:01:48]} 46. hxg5 {[%clk 0:01:05]}  Kxg5 {[%clk 0:01:48]} 47. Bc2 {[%clk 0:01:05]}  Bf7 {[%clk 0:01:47]} 48. Bb3 {[%clk 0:01:02]}  Be6 {[%clk 0:01:47]} 49. Bc2 {[%clk 0:01:00]}  Bf7 {[%clk 0:01:45]} 50. Bb3 {[%clk 0:01:00]}  Bg8 {[%clk 0:01:43]} 51. Ba2 {[%clk 0:00:59]}  Be6 {[%clk 0:01:43]} 52. Bb3 {[%clk 0:00:59]}  Bg8 {[%clk 0:01:43]} 53. Bc2 {[%clk 0:00:59]}  Be6 {[%clk 0:01:43]} 54. Bd3 {[%clk 0:00:54]}  Bg8 {[%clk 0:01:42]} 55. Bc2 {[%clk 0:00:54]}  Be6 {[%clk 0:01:40]} 56. Bd1 {[%clk 0:00:48]} 1/2-1/2


[Site "https://www.chess.com"]

[Event "Titled Tuesday Blitz December 7 2021"]
[White "Belyakov, Bogdan"]
[Black "Kretchetov, Alexandre"]
[WhiteFideId "24104795"]
[BlackFideId "4124588"]
[WhiteElo "2407"]
[BlackElo "2522"]
[Result "0-1"]
[Round "11"]
[TimeControl "180+1"]
[Date "2021.12.07"]
[WhiteClock "0:01:18"]
[BlackClock "0:00:21"]

1. e4 {[%clk 0:03:00]}  c6 {[%clk 0:02:59]} 2. d4 {[%clk 0:02:59]}  d5 {[%clk 0:02:59]} 3. e5 {[%clk 0:02:59]}  Bf5 {[%clk 0:02:58]} 4. Nd2 {[%clk 0:02:59]}  e6 {[%clk 0:02:58]} 5. Nb3 {[%clk 0:02:59]}  Nd7 {[%clk 0:02:57]} 6. Nf3 {[%clk 0:02:59]}  Ne7 {[%clk 0:02:56]} 7. Be2 {[%clk 0:02:58]}  Bg4 {[%clk 0:02:56]} 8. O-O {[%clk 0:02:57]}  Nf5 {[%clk 0:02:55]} 9. Ne1 {[%clk 0:02:57]}  Bxe2 {[%clk 0:02:53]} 10. Qxe2 {[%clk 0:02:58]}  a6 {[%clk 0:02:52]} 11. Nd3 {[%clk 0:02:57]}  Rc8 {[%clk 0:02:45]} 12. Bd2 {[%clk 0:02:55]}  c5 {[%clk 0:02:32]} 13. dxc5 {[%clk 0:02:53]}  Nxc5 {[%clk 0:02:30]} 14. Nbxc5 {[%clk 0:02:52]}  Bxc5 {[%clk 0:02:29]} 15. Nxc5 {[%clk 0:02:53]}  Rxc5 {[%clk 0:02:28]} 16. Bb4 {[%clk 0:02:53]}  Rc4 {[%clk 0:02:23]} 17. Ba3 {[%clk 0:02:47]}  Qc7 {[%clk 0:02:15]} 18. Rae1 {[%clk 0:02:32]}  Rxc2 {[%clk 0:02:08]} 19. Qg4 {[%clk 0:02:31]}  Rc4 {[%clk 0:02:01]} 20. Qg5 {[%clk 0:02:31]}  h6 {[%clk 0:01:59]} 21. Qd2 {[%clk 0:02:31]}  Kd7 {[%clk 0:01:51]} 22. f4 {[%clk 0:02:11]}  h5 {[%clk 0:01:46]} 23. Rc1 {[%clk 0:01:50]}  Rc8 {[%clk 0:01:44]} 24. Rxc4 {[%clk 0:01:50]}  Qxc4 {[%clk 0:01:44]} 25. Qa5 {[%clk 0:01:44]}  Qd4+ {[%clk 0:01:25]} 26. Kh1 {[%clk 0:01:43]}  Ne3 {[%clk 0:01:22]} 27. Re1 {[%clk 0:01:30]}  Qe4 {[%clk 0:01:01]} 28. Rg1 {[%clk 0:01:29]}  Nxg2 {[%clk 0:00:57]} 29. Qb4 {[%clk 0:01:26]}  Nxf4+ {[%clk 0:00:45]} 30. Qxe4 {[%clk 0:01:26]}  dxe4 {[%clk 0:00:45]} 31. Rxg7 {[%clk 0:01:27]}  Rc1+ {[%clk 0:00:43]} 32. Rg1 {[%clk 0:01:27]}  Rxg1+ {[%clk 0:00:26]} 33. Kxg1 {[%clk 0:01:27]}  Nd3 {[%clk 0:00:26]} 34. Bd6 {[%clk 0:01:21]}  f5 {[%clk 0:00:22]} 35. b3 {[%clk 0:01:19]}  f4 {[%clk 0:00:20]} 36. Kf1 {[%clk 0:01:18]}  f3 {[%clk 0:00:21]} 0-1


[Site "https://www.chess.com"]

[Event "Titled Tuesday Blitz December 7 2021"]
[White "Bologan, Victor"]
[Black "Kosteniuk, Alexandra"]
[WhiteFideId "13900048"]
[BlackFideId "4128125"]
[WhiteElo "2472"]
[BlackElo "2475"]
[Result "1/2-1/2"]
[Round "11"]
[TimeControl "180+1"]
[Date "2021.12.07"]
[WhiteClock "0:01:03"]
[BlackClock "0:00:25"]

1. e4 {[%clk 0:03:00]}  c6 {[%clk 0:03:00]} 2. d4 {[%clk 0:02:59]}  d5 {[%clk 0:03:00]} 3. e5 {[%clk 0:02:59]}  c5 {[%clk 0:03:00]} 4. Nf3 {[%clk 0:02:59]}  cxd4 {[%clk 0:02:59]} 5. Nxd4 {[%clk 0:02:59]}  Nc6 {[%clk 0:02:58]} 6. c4 {[%clk 0:02:58]}  e6 {[%clk 0:02:57]} 7. cxd5 {[%clk 0:02:56]}  exd5 {[%clk 0:02:56]} 8. Bb5 {[%clk 0:02:55]}  Bd7 {[%clk 0:02:52]} 9. Nc3 {[%clk 0:02:55]}  Bc5 {[%clk 0:02:44]} 10. Nb3 {[%clk 0:02:54]}  Bb4 {[%clk 0:02:34]} 11. O-O {[%clk 0:02:54]}  Bxc3 {[%clk 0:02:32]} 12. bxc3 {[%clk 0:02:54]}  Nge7 {[%clk 0:02:33]} 13. Ba3 {[%clk 0:02:46]}  O-O {[%clk 0:02:24]} 14. Bxc6 {[%clk 0:02:43]}  bxc6 {[%clk 0:02:22]} 15. f4 {[%clk 0:02:34]}  Re8 {[%clk 0:02:19]} 16. Bxe7 {[%clk 0:02:29]}  Rxe7 {[%clk 0:02:15]} 17. Qd4 {[%clk 0:02:28]}  Bf5 {[%clk 0:02:08]} 18. h3 {[%clk 0:02:26]}  h5 {[%clk 0:02:08]} 19. Kh2 {[%clk 0:02:25]}  Qb6 {[%clk 0:02:06]} 20. Nc5 {[%clk 0:02:24]}  Rb8 {[%clk 0:02:00]} 21. Rf2 {[%clk 0:02:09]}  a5 {[%clk 0:01:53]} 22. a4 {[%clk 0:02:08]}  Ree8 {[%clk 0:01:37]} 23. g3 {[%clk 0:01:59]}  Qd8 {[%clk 0:01:30]} 24. Rg1 {[%clk 0:01:55]}  Qc8 {[%clk 0:01:26]} 25. g4 {[%clk 0:01:50]}  hxg4 {[%clk 0:01:22]} 26. hxg4 {[%clk 0:01:50]}  Bxg4 {[%clk 0:01:01]} 27. f5 {[%clk 0:01:48]}  Bxf5 {[%clk 0:00:43]} 28. e6 {[%clk 0:01:48]}  Qc7+ {[%clk 0:00:42]} 29. Kh1 {[%clk 0:01:35]}  fxe6 {[%clk 0:00:43]} 30. Rfg2 {[%clk 0:01:29]}  Re7 {[%clk 0:00:42]} 31. Qh4 {[%clk 0:01:20]}  Rb1 {[%clk 0:00:35]} 32. Rxb1 {[%clk 0:01:14]}  Bxb1 {[%clk 0:00:36]} 33. Rh2 {[%clk 0:01:14]}  Bf5 {[%clk 0:00:30]} 34. Qh8+ {[%clk 0:01:08]}  Kf7 {[%clk 0:00:30]} 35. Qh5+ {[%clk 0:01:08]}  Kf6 {[%clk 0:00:27]} 36. Qh4+ {[%clk 0:01:07]}  Kf7 {[%clk 0:00:28]} 37. Qh5+ {[%clk 0:01:07]}  Kf6 {[%clk 0:00:25]} 38. Qh4+ {[%clk 0:01:03]}  Kf7 {[%clk 0:00:25]} 39. Qh5+ {[%clk 0:01:03]} 1/2-1/2


[Site "https://www.chess.com"]

[Event "Titled Tuesday Blitz December 7 2021"]
[White "Bortnyk, Olexandr"]
[Black "Gabrielian, Artur"]
[WhiteFideId "14120828"]
[BlackFideId "4131002"]
[WhiteElo "2723"]
[BlackElo "2440"]
[Result "1-0"]
[Round "11"]
[TimeControl "180+1"]
[Date "2021.12.07"]
[WhiteClock "0:00:04"]
[BlackClock "0:00:08"]

1. g4 {[%clk 0:03:00]}  e5 {[%clk 0:02:58]} 2. Bg2 {[%clk 0:02:59]}  h5 {[%clk 0:02:58]} 3. gxh5 {[%clk 0:02:45]}  Nf6 {[%clk 0:02:58]} 4. d4 {[%clk 0:02:43]}  e4 {[%clk 0:02:54]} 5. c4 {[%clk 0:02:36]}  d5 {[%clk 0:02:47]} 6. cxd5 {[%clk 0:02:37]}  Qxd5 {[%clk 0:02:46]} 7. Nc3 {[%clk 0:02:36]}  Qf5 {[%clk 0:02:41]} 8. Bh3 {[%clk 0:02:30]}  Ng4 {[%clk 0:02:23]} 9. f3 {[%clk 0:02:30]}  Qxh5 {[%clk 0:01:45]} 10. fxg4 {[%clk 0:01:44]}  Bxg4 {[%clk 0:01:38]} 11. Qa4+ {[%clk 0:01:31]}  Nd7 {[%clk 0:01:35]} 12. Bg2 {[%clk 0:01:02]}  Qh4+ {[%clk 0:01:27]} 13. Kd1 {[%clk 0:01:01]}  f5 {[%clk 0:01:19]} 14. Be3 {[%clk 0:00:47]}  O-O-O {[%clk 0:01:10]} 15. Qxa7 {[%clk 0:00:46]}  Nb6 {[%clk 0:01:10]} 16. d5 {[%clk 0:00:41]}  Nxd5 {[%clk 0:00:55]} 17. Qa8+ {[%clk 0:00:39]}  Kd7 {[%clk 0:00:55]} 18. Qa4+ {[%clk 0:00:40]}  Kc8 {[%clk 0:00:46]} 19. Nxd5 {[%clk 0:00:38]}  Rxd5+ {[%clk 0:00:45]} 20. Kc2 {[%clk 0:00:39]}  Rh6 {[%clk 0:00:35]} 21. Bxh6 {[%clk 0:00:08]}  Rc5+ {[%clk 0:00:33]} 22. Kb3 {[%clk 0:00:05]}  Qe7 {[%clk 0:00:33]} 23. Qa8+ {[%clk 0:00:04]}  Kd7 {[%clk 0:00:33]} 24. Rd1+ {[%clk 0:00:05]}  Kc6 {[%clk 0:00:32]} 25. Qa4+ {[%clk 0:00:05]}  Rb5+ {[%clk 0:00:30]} 26. Kc2 {[%clk 0:00:05]}  gxh6 {[%clk 0:00:28]} 27. Kb1 {[%clk 0:00:02]}  Bg7 {[%clk 0:00:28]} 28. b3 {[%clk 0:00:02]}  Qe5 {[%clk 0:00:27]} 29. Qc4+ {[%clk 0:00:02]}  Kb6 {[%clk 0:00:25]} 30. Rd4 {[%clk 0:00:02]}  Qxd4 {[%clk 0:00:22]} 31. Qxd4+ {[%clk 0:00:03]}  Bxd4 {[%clk 0:00:22]} 32. Nh3 {[%clk 0:00:04]}  Bxe2 {[%clk 0:00:19]} 33. Nf4 {[%clk 0:00:04]}  Bg4 {[%clk 0:00:18]} 34. h3 {[%clk 0:00:04]}  Bf3 {[%clk 0:00:18]} 35. Bxf3 {[%clk 0:00:04]}  exf3 {[%clk 0:00:19]} 36. Rf1 {[%clk 0:00:05]}  f2 {[%clk 0:00:19]} 37. Nd3 {[%clk 0:00:06]}  Rd5 {[%clk 0:00:15]} 38. Nxf2 {[%clk 0:00:06]}  Be5 {[%clk 0:00:13]} 39. Nd1 {[%clk 0:00:06]}  f4 {[%clk 0:00:12]} 40. Kc2 {[%clk 0:00:06]}  Kc6 {[%clk 0:00:10]} 41. Nf2 {[%clk 0:00:06]}  Kd6 {[%clk 0:00:10]} 42. Nd3 {[%clk 0:00:02]}  Rd4 {[%clk 0:00:10]} 43. a4 {[%clk 0:00:02]}  c6 {[%clk 0:00:09]} 44. Nb2 {[%clk 0:00:03]}  Re4 {[%clk 0:00:09]} 45. Nc4+ {[%clk 0:00:03]}  Ke6 {[%clk 0:00:09]} 46. a5 {[%clk 0:00:03]}  Re2+ {[%clk 0:00:08]} 47. Kd3 {[%clk 0:00:04]}  Rh2 {[%clk 0:00:09]} 48. Ke4 {[%clk 0:00:03]}  Re2+ {[%clk 0:00:09]} 49. Kf3 {[%clk 0:00:04]}  Rc2 {[%clk 0:00:08]} 50. Kg4 {[%clk 0:00:04]}  h5+ {[%clk 0:00:08]} 51. Kxh5 {[%clk 0:00:04]}  Rc3 {[%clk 0:00:07]} 52. Re1 {[%clk 0:00:05]}  Rxh3+ {[%clk 0:00:07]} 53. Kg4 {[%clk 0:00:05]}  Rg3+ {[%clk 0:00:07]} 54. Kh4 {[%clk 0:00:05]}  Kd5 {[%clk 0:00:06]} 55. Rxe5+ {[%clk 0:00:05]}  Kd4 {[%clk 0:00:07]} 56. Rf5 {[%clk 0:00:05]}  Rxb3 {[%clk 0:00:07]} 57. Rxf4+ {[%clk 0:00:03]}  Kc5 {[%clk 0:00:08]} 58. Nb6 {[%clk 0:00:03]}  Rb5 {[%clk 0:00:07]} 59. Nd7+ {[%clk 0:00:02]}  Kd6 {[%clk 0:00:07]} 60. Nb6 {[%clk 0:00:03]}  Kc5 {[%clk 0:00:07]} 61. Nd7+ {[%clk 0:00:02]}  Kd6 {[%clk 0:00:07]} 62. Nf6 {[%clk 0:00:02]}  Rxa5 {[%clk 0:00:07]} 63. Kg3 {[%clk 0:00:03]}  Ra3+ {[%clk 0:00:06]} 64. Kg4 {[%clk 0:00:02]}  b5 {[%clk 0:00:07]} 65. Ne4+ {[%clk 0:00:03]}  Kc7 {[%clk 0:00:07]} 66. Kf5 {[%clk 0:00:02]}  Kb6 {[%clk 0:00:07]} 67. Ke5 {[%clk 0:00:03]}  Rd3 {[%clk 0:00:08]} 68. Rf8 {[%clk 0:00:03]}  Rd5+ {[%clk 0:00:08]} 69. Ke6 {[%clk 0:00:04]}  b4 {[%clk 0:00:08]} 70. Rb8+ {[%clk 0:00:04]}  Ka5 {[%clk 0:00:09]} 71. Nd6 {[%clk 0:00:04]}  Ka4 {[%clk 0:00:09]} 72. Nc4 {[%clk 0:00:04]}  Kb3 {[%clk 0:00:09]} 73. Ne5 {[%clk 0:00:04]}  Rd1 {[%clk 0:00:08]} 74. Nxc6 {[%clk 0:00:04]}  Kc4 {[%clk 0:00:08]} 75. Na5+ {[%clk 0:00:03]}  Kc3 {[%clk 0:00:08]} 76. Rc8+ {[%clk 0:00:02]}  Kb2 {[%clk 0:00:09]} 77. Rb8 {[%clk 0:00:03]}  Ka3 {[%clk 0:00:09]} 78. Ke5 {[%clk 0:00:03]}  Rd2 {[%clk 0:00:08]} 79. Nc4+ {[%clk 0:00:03]}  Kb3 {[%clk 0:00:07]} 80. Nxd2+ {[%clk 0:00:04]}  Kc3 {[%clk 0:00:08]} 81. Ne4+ {[%clk 0:00:04]} 1-0


[Site "https://www.chess.com"]

[Event "Titled Tuesday Blitz December 7 2021"]
[White "Brunner, Nicolas"]
[Black "Maksimenko, Viktor"]
[WhiteFideId "620246"]
[BlackFideId "13710478"]
[WhiteElo "2372"]
[BlackElo "2269"]
[Result "0-1"]
[Round "11"]
[TimeControl "180+1"]
[Date "2021.12.07"]
[WhiteClock "0:02:14"]
[BlackClock "0:02:30"]

1. d4 {[%clk 0:03:00]}  Nf6 {[%clk 0:03:00]} 2. c4 {[%clk 0:03:01]}  e6 {[%clk 0:03:00]} 3. g3 {[%clk 0:03:01]}  c5 {[%clk 0:02:59]} 4. d5 {[%clk 0:03:00]}  exd5 {[%clk 0:03:00]} 5. cxd5 {[%clk 0:03:00]}  d6 {[%clk 0:03:00]} 6. Nc3 {[%clk 0:03:00]}  g6 {[%clk 0:03:01]} 7. Nf3 {[%clk 0:02:59]}  Bg7 {[%clk 0:03:01]} 8. Bg2 {[%clk 0:03:00]}  O-O {[%clk 0:03:02]} 9. O-O {[%clk 0:03:00]}  Re8 {[%clk 0:03:02]} 10. Nd2 {[%clk 0:02:45]}  a6 {[%clk 0:03:01]} 11. a4 {[%clk 0:02:44]}  Nbd7 {[%clk 0:03:02]} 12. Nc4 {[%clk 0:02:43]}  Ne5 {[%clk 0:03:02]} 13. Na3 {[%clk 0:02:43]}  Nh5 {[%clk 0:03:03]} 14. h3 {[%clk 0:02:42]}  Bd7 {[%clk 0:02:55]} 15. Kh2 {[%clk 0:02:33]}  b5 {[%clk 0:02:51]} 16. g4 {[%clk 0:02:18]}  Bxg4 {[%clk 0:02:36]} 17. hxg4 {[%clk 0:02:15]}  Nxg4+ {[%clk 0:02:37]} 18. Kg1 {[%clk 0:02:14]}  Qh4 {[%clk 0:02:30]} 0-1


[Site "https://www.chess.com"]